[Event "Late-Titled-Tuesday-Blitz-October-17-2023"]
[Site "Chess.com"]
[Date "2023.10.17"]
[Round "6"]
[White "Tiqr777"]
[Black "Bauman_Guy"]
[Result "0-1"]
[WhiteElo "2639"]
[BlackElo "2876"]
[TimeControl "180+1"]
[EndTime "15:08:11 PDT"]
[Termination "Bauman_Guy won by resignation"]

1. c4 {[%clk 0:03:00.9]} 1... Nf6 {[%clk 0:03:00.1]} 2. Nc3 {[%clk 0:03:01.4]}
2... e5 {[%clk 0:03:00.5]} 3. g3 {[%clk 0:03:01.8]} 3... g6 {[%clk 0:02:59.5]}
4. Bg2 {[%clk 0:03:01.8]} 4... Bg7 {[%clk 0:03:00.2]} 5. d3 {[%clk 0:03:02.4]}
5... O-O {[%clk 0:03:00.6]} 6. Nf3 {[%clk 0:03:03.1]} 6... d6 {[%clk 0:03:01.1]}
7. O-O {[%clk 0:03:03.7]} 7... Re8 {[%clk 0:03:00.3]} 8. Bg5 {[%clk 0:03:03.1]}
8... Nbd7 {[%clk 0:03:00.6]} 9. Rb1 {[%clk 0:03:03.1]} 9... a5 {[%clk
0:03:00.2]} 10. a3 {[%clk 0:03:03.1]} 10... h6 {[%clk 0:03:00.9]} 11. Bxf6
{[%clk 0:03:03.6]} 11... Nxf6 {[%clk 0:03:01.8]} 12. Nd2 {[%clk 0:03:04.2]}
12... h5 {[%clk 0:03:01]} 13. b4 {[%clk 0:03:04.4]} 13... axb4 {[%clk
0:03:01.6]} 14. axb4 {[%clk 0:03:05.1]} 14... h4 {[%clk 0:03:00.2]} 15. b5
{[%clk 0:03:05.4]} 15... Nh7 {[%clk 0:02:56.8]} 16. Nd5 {[%clk 0:03:04.6]} 16...
Ng5 {[%clk 0:02:54]} 17. b6 {[%clk 0:03:04.4]} 17... c6 {[%clk 0:02:51.6]} 18.
Nc7 {[%clk 0:03:04.5]} 18... Bg4 {[%clk 0:02:48.5]} 19. Nxa8 {[%clk 0:03:01.1]}
19... Qxa8 {[%clk 0:02:49.4]} 20. Nf3 {[%clk 0:02:53.6]} 20... Nxf3+ {[%clk
0:02:38.4]} 21. Bxf3 {[%clk 0:02:51.9]} 21... Bxf3 {[%clk 0:02:38.5]} 22. exf3
{[%clk 0:02:52.6]} 22... Qa5 {[%clk 0:02:38.7]} 23. Qe2 {[%clk 0:02:43.9]} 23...
Ra8 {[%clk 0:02:35.6]} 24. Qe4 {[%clk 0:02:42.9]} 24... hxg3 {[%clk 0:02:20.2]}
25. hxg3 {[%clk 0:02:42.3]} 25... Ra6 {[%clk 0:02:20.8]} 26. Qg4 {[%clk
0:02:21.4]} 26... Bf8 {[%clk 0:02:10.8]} 27. Qc8 {[%clk 0:02:18.3]} 27... Rxb6
{[%clk 0:02:10.3]} 28. Ra1 {[%clk 0:02:01.2]} 28... Qb4 {[%clk 0:02:10.1]} 29.
Ra8 {[%clk 0:01:37]} 29... d5 {[%clk 0:02:09.4]} 30. cxd5 {[%clk 0:01:31]} 30...
cxd5 {[%clk 0:02:08.2]} 31. Kg2 {[%clk 0:01:19.4]} 31... Kg7 {[%clk 0:01:49.6]}
32. Rh1 {[%clk 0:01:14.1]} 32... Qc5 {[%clk 0:01:29.1]} 33. Qh3 {[%clk
0:01:10.4]} 33... Kf6 {[%clk 0:01:21.4]} 34. Qh4+ {[%clk 0:01:05.8]} 34... Ke6
{[%clk 0:01:20]} 35. Qg4+ {[%clk 0:01:03.5]} 35... Kf6 {[%clk 0:01:19.9]} 36.
Rh8 {[%clk 0:00:57.4]} 36... Be7 {[%clk 0:01:07.6]} 37. Rac8 {[%clk 0:00:48.8]}
37... Qd4 {[%clk 0:01:02]} 38. Qxd4 {[%clk 0:00:36.8]} 38... exd4 {[%clk
0:01:02.9]} 39. Rh1 {[%clk 0:00:29.8]} 39... Rb3 {[%clk 0:01:02.1]} 40. Rd1
{[%clk 0:00:28.6]} 40... b6 {[%clk 0:00:52.8]} 41. Rc6+ {[%clk 0:00:26.6]} 41...
Kg7 {[%clk 0:00:52.1]} 42. Re1 {[%clk 0:00:25.7]} 42... Bc5 {[%clk 0:00:50.4]}
43. Rd1 {[%clk 0:00:20.9]} 43... Rc3 {[%clk 0:00:50.8]} 44. Rc7 {[%clk
0:00:20.1]} 44... Kf6 {[%clk 0:00:48.1]} 45. Rc6+ {[%clk 0:00:19.6]} 45... Kg7
{[%clk 0:00:41.9]} 46. Rc7 {[%clk 0:00:19.1]} 46... b5 {[%clk 0:00:42.4]} 47. f4
{[%clk 0:00:18.4]} 47... b4 {[%clk 0:00:42.2]} 48. Rb1 {[%clk 0:00:16.6]} 48...
Kf6 {[%clk 0:00:32.1]} 49. g4 {[%clk 0:00:14.4]} 49... Bd6 {[%clk 0:00:29.6]}
50. Rd7 {[%clk 0:00:12.7]} 50... Ke6 {[%clk 0:00:29.7]} 51. Rd8 {[%clk
0:00:10.7]} 51... Ke7 {[%clk 0:00:29.5]} 52. Ra8 {[%clk 0:00:08.7]} 52... Rxd3
{[%clk 0:00:22.4]} 53. Re1+ {[%clk 0:00:08.7]} 53... Kd7 {[%clk 0:00:21.6]} 54.
Ra7+ {[%clk 0:00:09.1]} 54... Kc6 {[%clk 0:00:21.9]} 55. Rxf7 {[%clk 0:00:08.8]}
55... b3 {[%clk 0:00:22.2]} 56. Re6 {[%clk 0:00:05.4]} 56... b2 {[%clk 0:00:11]}
57. Rxd6+ {[%clk 0:00:05.5]} 57... Kxd6 {[%clk 0:00:10.8]} 58. Rb7 {[%clk
0:00:06.1]} 58... Rd2 {[%clk 0:00:07.3]} 59. Kg3 {[%clk 0:00:06.5]} 59... d3
{[%clk 0:00:07.5]} 60. Rb6+ {[%clk 0:00:06.5]} 60... Kc5 {[%clk 0:00:07.5]} 61.
Rb8 {[%clk 0:00:06.8]} 61... Rc2 {[%clk 0:00:07.8]} 62. f5 {[%clk 0:00:06.8]}
62... gxf5 {[%clk 0:00:08.3]} 63. gxf5 {[%clk 0:00:07.4]} 63... d2 {[%clk
0:00:07.2]} 64. Rc8+ {[%clk 0:00:07.5]} 64... Kd4 {[%clk 0:00:07.4]} 65. Rxc2
{[%clk 0:00:08.2]} 65... b1=Q {[%clk 0:00:04.3]} 66. Rxd2+ {[%clk 0:00:08.1]}
66... Ke5 {[%clk 0:00:05]} 67. f6 {[%clk 0:00:04.5]} 67... Qg6+ {[%clk 0:00:05]}
68. Kh2 {[%clk 0:00:04.2]} 68... Qxf6 {[%clk 0:00:05.9]} 69. Re2+ {[%clk
0:00:04.7]} 69... Kd4 {[%clk 0:00:06.4]} 70. Kg2 {[%clk 0:00:05.3]} 70... Kc3
{[%clk 0:00:06.7]} 71. Re3+ {[%clk 0:00:05.4]} 71... Kc4 {[%clk 0:00:07.1]} 72.
Rf3 {[%clk 0:00:05.9]} 72... Qe5 {[%clk 0:00:06.7]} 73. Re3 {[%clk 0:00:05.5]}
73... Qd6 {[%clk 0:00:06.6]} 74. Kf3 {[%clk 0:00:05.5]} 74... d4 {[%clk
0:00:07.1]} 75. Re4 {[%clk 0:00:06]} 75... Kc3 {[%clk 0:00:07.6]} 76. Re1 {[%clk
0:00:04.4]} 76... d3 {[%clk 0:00:07.7]} 77. Re6 {[%clk 0:00:04.9]} 77... Qxe6
{[%clk 0:00:07.6]} 0-1

[Event "Late-Titled-Tuesday-Blitz-October-17-2023"]
[Site "Chess.com"]
[Date "2023.10.17"]
[Round "7"]
[White "pedromartinez91"]
[Black "PushingpawnsNYC"]
[Result "1/2-1/2"]
[WhiteElo "2519"]
[BlackElo "2349"]
[TimeControl "180+1"]
[EndTime "15:11:25 PDT"]
[Termination "Game drawn by agreement"]

1. d4 {[%clk 0:03:00.9]} 1... g6 {[%clk 0:02:59.4]} 2. c4 {[%clk 0:03:00.1]}
2... Bg7 {[%clk 0:03:00.1]} 3. Nc3 {[%clk 0:03:00.3]} 3... b6 {[%clk 0:02:57.9]}
4. e4 {[%clk 0:03:00.3]} 4... Bb7 {[%clk 0:02:58.4]} 5. Nf3 {[%clk 0:03:00.4]}
5... h6 {[%clk 0:02:58.8]} 6. Bd3 {[%clk 0:02:59.8]} 6... e6 {[%clk 0:02:59.4]}
7. e5 {[%clk 0:02:57.4]} 7... d6 {[%clk 0:02:59.2]} 8. exd6 {[%clk 0:02:56.6]}
8... cxd6 {[%clk 0:02:58.9]} 9. O-O {[%clk 0:02:56.7]} 9... a6 {[%clk
0:02:57.2]} 10. Re1 {[%clk 0:02:57.2]} 10... Ne7 {[%clk 0:02:57.4]} 11. Bf4
{[%clk 0:02:54.4]} 11... O-O {[%clk 0:02:47.2]} 12. Qd2 {[%clk 0:02:54.4]} 12...
g5 {[%clk 0:02:45.2]} 13. Nxg5 {[%clk 0:02:54.9]} 13... hxg5 {[%clk 0:02:45.4]}
14. Bxg5 {[%clk 0:02:55.8]} 14... Qd7 {[%clk 0:02:40.6]} 15. Re3 {[%clk
0:02:55.7]} 15... f5 {[%clk 0:02:27.4]} 16. Rg3 {[%clk 0:02:53.3]} 16... Rf7
{[%clk 0:02:17.9]} 17. Bh6 {[%clk 0:02:51.6]} 1/2-1/2

[Event "Late-Titled-Tuesday-Blitz-October-17-2023"]
[Site "Chess.com"]
[Date "2023.10.17"]
[Round "7"]
[White "Joshukid"]
[Black "lamomiajunior"]
[Result "1-0"]
[WhiteElo "2579"]
[BlackElo "2730"]
[TimeControl "180+1"]
[EndTime "15:14:12 PDT"]
[Termination "Joshukid won by resignation"]

1. Nf3 {[%clk 0:02:54.8]} 1... d5 {[%clk 0:03:00]} 2. c4 {[%clk 0:02:54.1]} 2...
e6 {[%clk 0:03:00.2]} 3. g3 {[%clk 0:02:54.4]} 3... Nf6 {[%clk 0:03:00.6]} 4.
Bg2 {[%clk 0:02:55]} 4... dxc4 {[%clk 0:02:59.4]} 5. Qa4+ {[%clk 0:02:54.9]}
5... Nbd7 {[%clk 0:02:58.7]} 6. Qxc4 {[%clk 0:02:52.9]} 6... a6 {[%clk
0:02:59.1]} 7. Qb3 {[%clk 0:02:52.2]} 7... Ra7 {[%clk 0:02:54]} 8. O-O {[%clk
0:02:51.5]} 8... b5 {[%clk 0:02:54.3]} 9. Nd4 {[%clk 0:02:51.6]} 9... Nc5 {[%clk
0:02:17.3]} 10. Qe3 {[%clk 0:02:45.6]} 10... Nd5 {[%clk 0:02:16.7]} 11. Bxd5
{[%clk 0:02:26.4]} 11... Qxd5 {[%clk 0:02:17.6]} 12. b4 {[%clk 0:02:26.6]} 12...
Ne4 {[%clk 0:01:25]} 13. f3 {[%clk 0:02:09.8]} 13... c5 {[%clk 0:01:19.1]} 14.
Nb3 {[%clk 0:01:39.7]} 14... Nf6 {[%clk 0:01:12.7]} 15. Nxc5 {[%clk 0:01:32.4]}
15... Bxc5 {[%clk 0:01:12]} 16. Qxc5 {[%clk 0:01:32.2]} 16... Qd7 {[%clk
0:01:06.2]} 17. Bb2 {[%clk 0:01:28.4]} 17... h6 {[%clk 0:00:36.1]} 18. Rc1
{[%clk 0:01:21.4]} 18... Ra8 {[%clk 0:00:30.9]} 19. a4 {[%clk 0:01:16.6]} 19...
bxa4 {[%clk 0:00:30.4]} 20. Nc3 {[%clk 0:01:16.2]} 20... Qe7 {[%clk 0:00:22.4]}
21. Qc6+ {[%clk 0:01:14.8]} 1-0

[Event "Late-Titled-Tuesday-Blitz-October-17-2023"]
[Site "Chess.com"]
[Date "2023.10.17"]
[Round "7"]
[White "leoduarte"]
[Black "NotFischer"]
[Result "1-0"]
[WhiteElo "2399"]
[BlackElo "2257"]
[TimeControl "180+1"]
[EndTime "15:14:13 PDT"]
[Termination "leoduarte won by resignation"]

1. d4 {[%clk 0:03:00.9]} 1... g6 {[%clk 0:02:59.3]} 2. e4 {[%clk 0:03:00.3]}
2... Bg7 {[%clk 0:02:59.7]} 3. Nc3 {[%clk 0:03:00.9]} 3... c6 {[%clk 0:02:59.9]}
4. Be3 {[%clk 0:02:54.9]} 4... d5 {[%clk 0:02:59.5]} 5. e5 {[%clk 0:02:55.5]}
5... Nh6 {[%clk 0:02:58.5]} 6. h3 {[%clk 0:02:53.8]} 6... Nf5 {[%clk 0:02:51.9]}
7. Qd2 {[%clk 0:02:53.5]} 7... h5 {[%clk 0:02:50.8]} 8. Nf3 {[%clk 0:02:51.7]}
8... h4 {[%clk 0:02:40.6]} 9. Bg5 {[%clk 0:02:48.1]} 9... f6 {[%clk 0:02:25]}
10. exf6 {[%clk 0:02:45.5]} 10... exf6 {[%clk 0:02:24.6]} 11. Bf4 {[%clk
0:02:45.8]} 11... Kf7 {[%clk 0:02:16.7]} 12. O-O-O {[%clk 0:02:44.7]} 12... Nd7
{[%clk 0:02:03.5]} 13. g4 {[%clk 0:02:39.2]} 13... hxg3 {[%clk 0:02:02.1]} 14.
fxg3 {[%clk 0:02:30.9]} 14... Nb6 {[%clk 0:02:01.3]} 15. g4 {[%clk 0:02:29.7]}
15... Nd6 {[%clk 0:01:58.4]} 16. Qf2 {[%clk 0:02:21.8]} 16... Ne4 {[%clk
0:01:41]} 17. Nxe4 {[%clk 0:02:20]} 17... dxe4 {[%clk 0:01:41.9]} 18. Ne5+
{[%clk 0:02:15.3]} 18... Kf8 {[%clk 0:00:36.5]} 19. Nxg6+ {[%clk 0:02:14]} 19...
Kg8 {[%clk 0:00:36.9]} 20. Bg2 {[%clk 0:02:03.5]} 20... Qe8 {[%clk 0:00:33.8]}
21. Nxh8 {[%clk 0:02:01.2]} 21... Kxh8 {[%clk 0:00:34.1]} 22. Rhe1 {[%clk
0:01:58.6]} 22... f5 {[%clk 0:00:34.2]} 23. gxf5 {[%clk 0:01:50.4]} 23... Bxf5
{[%clk 0:00:35.1]} 24. Be5 {[%clk 0:01:49.5]} 24... Bxe5 {[%clk 0:00:27.4]} 25.
Qxf5 {[%clk 0:01:48.8]} 25... Bg7 {[%clk 0:00:25.5]} 26. Rxe4 {[%clk 0:01:47.2]}
26... Qf8 {[%clk 0:00:16.7]} 27. Qh5+ {[%clk 0:01:43.9]} 27... Kg8 {[%clk
0:00:16.5]} 28. Rf1 {[%clk 0:01:42.8]} 1-0

[Event "Late-Titled-Tuesday-Blitz-October-17-2023"]
[Site "Chess.com"]
[Date "2023.10.17"]
[Round "7"]
[White "SanchezKelvin"]
[Black "dianamirza"]
[Result "1-0"]
[WhiteElo "2555"]
[BlackElo "1962"]
[TimeControl "180+1"]
[EndTime "15:14:15 PDT"]
[Termination "SanchezKelvin won by resignation"]

1. e4 {[%clk 0:02:59.1]} 1... d5 {[%clk 0:02:59.4]} 2. exd5 {[%clk 0:02:52.8]}
2... Qxd5 {[%clk 0:03:00.3]} 3. Nc3 {[%clk 0:02:52.8]} 3... Qd8 {[%clk
0:03:01.2]} 4. d4 {[%clk 0:02:50.9]} 4... Nf6 {[%clk 0:03:02.1]} 5. Nf3 {[%clk
0:02:49.1]} 5... Bg4 {[%clk 0:03:02.7]} 6. h3 {[%clk 0:02:49]} 6... Bxf3 {[%clk
0:03:02.9]} 7. Qxf3 {[%clk 0:02:49.6]} 7... c6 {[%clk 0:03:03.4]} 8. Be3 {[%clk
0:02:49.8]} 8... e6 {[%clk 0:03:02.7]} 9. O-O-O {[%clk 0:02:50]} 9... Bb4 {[%clk
0:03:01.1]} 10. Ne4 {[%clk 0:01:00.1]} 10... Nd5 {[%clk 0:02:54.2]} 11. c4
{[%clk 0:00:59.3]} 11... Nxe3 {[%clk 0:02:38.4]} 12. fxe3 {[%clk 0:01:00.2]}
12... O-O {[%clk 0:02:29.7]} 13. Bd3 {[%clk 0:00:59.6]} 13... Qa5 {[%clk
0:02:27.4]} 14. a3 {[%clk 0:00:58.7]} 14... Be7 {[%clk 0:02:19.9]} 15. h4 {[%clk
0:00:57.3]} 15... Nd7 {[%clk 0:02:19.7]} 16. g4 {[%clk 0:00:56.1]} 16... b5
{[%clk 0:02:16.7]} 17. c5 {[%clk 0:00:47.5]} 17... b4 {[%clk 0:02:13.4]} 18.
axb4 {[%clk 0:00:47.6]} 18... Qxb4 {[%clk 0:02:13.1]} 19. Nc3 {[%clk 0:00:48.3]}
19... Rab8 {[%clk 0:02:03.1]} 20. Rd2 {[%clk 0:00:48.5]} 20... Nf6 {[%clk
0:01:51]} 21. Qxc6 {[%clk 0:00:44.3]} 21... Rfc8 {[%clk 0:01:46]} 22. Qf3 {[%clk
0:00:42.8]} 22... a5 {[%clk 0:01:38]} 23. g5 {[%clk 0:00:42.8]} 23... Nd7 {[%clk
0:01:30.4]} 24. Qe4 {[%clk 0:00:41.2]} 24... g6 {[%clk 0:01:30.1]} 25. h5 {[%clk
0:00:39.5]} 25... e5 {[%clk 0:01:24.5]} 26. Nd5 {[%clk 0:00:36.3]} 26... Rc7
{[%clk 0:01:11.9]} 27. Nxb4 {[%clk 0:00:31.8]} 1-0

[Event "Late-Titled-Tuesday-Blitz-October-17-2023"]
[Site "Chess.com"]
[Date "2023.10.17"]
[Round "7"]
[White "MathiasWomacka"]
[Black "Byniolus"]
[Result "0-1"]
[WhiteElo "2536"]
[BlackElo "2767"]
[TimeControl "180+1"]
[EndTime "15:14:18 PDT"]
[Termination "Byniolus won by resignation"]

1. e4 {[%clk 0:03:00.9]} 1... d6 {[%clk 0:03:00.2]} 2. d4 {[%clk 0:02:59.9]}
2... Nf6 {[%clk 0:03:01.1]} 3. Nc3 {[%clk 0:02:59.6]} 3... c6 {[%clk 0:03:01.7]}
4. f4 {[%clk 0:02:57]} 4... Qb6 {[%clk 0:03:01.6]} 5. Nf3 {[%clk 0:02:46]} 5...
Bg4 {[%clk 0:03:01.4]} 6. Be3 {[%clk 0:02:45.3]} 6... Qxb2 {[%clk 0:03:00.9]} 7.
Kd2 {[%clk 0:02:20.2]} 7... Qb4 {[%clk 0:02:45.7]} 8. Bd3 {[%clk 0:02:18.5]}
8... Qa5 {[%clk 0:02:46]} 9. h3 {[%clk 0:02:13.5]} 9... Bxf3 {[%clk 0:02:39.1]}
10. Qxf3 {[%clk 0:02:14.4]} 10... Nbd7 {[%clk 0:02:33.7]} 11. Rab1 {[%clk
0:02:06.5]} 11... Nb6 {[%clk 0:02:23.8]} 12. Rb3 {[%clk 0:01:54.1]} 12... e6
{[%clk 0:02:15.6]} 13. g4 {[%clk 0:01:51.5]} 13... d5 {[%clk 0:02:13.3]} 14. e5
{[%clk 0:01:46.8]} 14... Ne4+ {[%clk 0:02:01.7]} 15. Bxe4 {[%clk 0:01:45.2]}
15... dxe4 {[%clk 0:02:02.6]} 16. Qxe4 {[%clk 0:01:45.3]} 16... Bb4 {[%clk
0:02:01.2]} 17. Rxb4 {[%clk 0:01:13.6]} 17... Qxb4 {[%clk 0:01:59.6]} 18. Rb1
{[%clk 0:01:14.3]} 18... Qa5 {[%clk 0:01:55.3]} 19. Qd3 {[%clk 0:01:08.1]} 19...
O-O-O {[%clk 0:01:46.3]} 20. Ke2 {[%clk 0:01:08.1]} 20... Nd5 {[%clk 0:01:24.4]}
21. Ne4 {[%clk 0:01:07.8]} 21... f5 {[%clk 0:01:23.7]} 22. gxf5 {[%clk
0:01:00.1]} 22... exf5 {[%clk 0:01:22.1]} 23. Nd6+ {[%clk 0:00:56.7]} 23... Rxd6
{[%clk 0:01:21.8]} 24. exd6 {[%clk 0:00:57.6]} 24... Nc3+ {[%clk 0:01:20.6]} 25.
Kf2 {[%clk 0:00:52.8]} 25... Nxb1 {[%clk 0:01:21.5]} 26. c4 {[%clk 0:00:46.6]}
26... Nc3 {[%clk 0:01:14.6]} 27. d5 {[%clk 0:00:41.5]} 27... Ne4+ {[%clk
0:01:12.5]} 28. Kf3 {[%clk 0:00:40.2]} 28... cxd5 {[%clk 0:01:09.3]} 0-1

[Event "Late-Titled-Tuesday-Blitz-October-17-2023"]
[Site "Chess.com"]
[Date "2023.10.17"]
[Round "7"]
[White "Hasangatin_Ramil"]
[Black "amanmuhammethommadov"]
[Result "1-0"]
[WhiteElo "2719"]
[BlackElo "2537"]
[TimeControl "180+1"]
[EndTime "15:14:23 PDT"]
[Termination "Hasangatin_Ramil won on time"]

1. e4 {[%clk 0:02:58.8]} 1... c5 {[%clk 0:02:59.8]} 2. Nf3 {[%clk 0:02:58.3]}
2... Nc6 {[%clk 0:02:59.9]} 3. Bb5 {[%clk 0:02:57.9]} 3... e6 {[%clk 0:03:00]}
4. Bxc6 {[%clk 0:02:57.8]} 4... bxc6 {[%clk 0:03:00.9]} 5. b3 {[%clk 0:02:55.8]}
5... Ne7 {[%clk 0:02:58.6]} 6. Ba3 {[%clk 0:02:54.6]} 6... Ng6 {[%clk
0:02:53.6]} 7. d4 {[%clk 0:02:52.7]} 7... d5 {[%clk 0:02:53.6]} 8. dxc5 {[%clk
0:02:47.5]} 8... Qf6 {[%clk 0:02:40.3]} 9. Nbd2 {[%clk 0:02:44.1]} 9... Ba6
{[%clk 0:02:29]} 10. c4 {[%clk 0:02:35.9]} 10... dxc4 {[%clk 0:01:54.9]} 11.
bxc4 {[%clk 0:02:36.8]} 11... Qc3 {[%clk 0:01:50.3]} 12. Qa4 {[%clk 0:01:36.8]}
12... Qxa1+ {[%clk 0:01:43.4]} 13. Ke2 {[%clk 0:01:36.9]} 13... Nf4+ {[%clk
0:00:12.7]} 14. Ke3 {[%clk 0:01:26.6]} 14... Nxg2+ {[%clk 0:00:10.2]} 15. Ke2
{[%clk 0:01:25.7]} 15... Nf4+ {[%clk 0:00:06.8]} 16. Ke3 {[%clk 0:01:26]} 16...
Ng2+ {[%clk 0:00:02.4]} 17. Ke2 {[%clk 0:01:20.2]} 1-0

[Event "Late-Titled-Tuesday-Blitz-October-17-2023"]
[Site "Chess.com"]
[Date "2023.10.17"]
[Round "7"]
[White "KorolDimitriy75"]
[Black "morte-negra"]
[Result "1-0"]
[WhiteElo "2334"]
[BlackElo "1958"]
[TimeControl "180+1"]
[EndTime "15:14:44 PDT"]
[Termination "KorolDimitriy75 won by resignation"]

1. d4 {[%clk 0:03:00.9]} 1... Nf6 {[%clk 0:02:58.3]} 2. c4 {[%clk 0:03:00.9]}
2... c5 {[%clk 0:02:58]} 3. d5 {[%clk 0:03:00.9]} 3... b5 {[%clk 0:02:58.2]} 4.
Nd2 {[%clk 0:03:01.2]} 4... e6 {[%clk 0:02:55.4]} 5. e4 {[%clk 0:03:00.1]} 5...
bxc4 {[%clk 0:02:53.4]} 6. Bxc4 {[%clk 0:02:58.5]} 6... Ba6 {[%clk 0:02:51.5]}
7. Qe2 {[%clk 0:02:31.8]} 7... Bxc4 {[%clk 0:02:48.1]} 8. Nxc4 {[%clk
0:02:32.7]} 8... d6 {[%clk 0:02:29.2]} 9. Nf3 {[%clk 0:02:18.5]} 9... e5 {[%clk
0:02:27]} 10. O-O {[%clk 0:02:15.3]} 10... Be7 {[%clk 0:02:25]} 11. Ne1 {[%clk
0:02:00.7]} 11... O-O {[%clk 0:02:18.3]} 12. Nd3 {[%clk 0:01:59.7]} 12... Na6
{[%clk 0:02:07.5]} 13. f4 {[%clk 0:01:57.9]} 13... exf4 {[%clk 0:02:03.3]} 14.
Bxf4 {[%clk 0:01:58.8]} 14... Re8 {[%clk 0:02:02.6]} 15. Qf3 {[%clk 0:01:54.4]}
15... Bf8 {[%clk 0:01:53]} 16. Rae1 {[%clk 0:01:53]} 16... Nc7 {[%clk
0:01:44.6]} 17. h3 {[%clk 0:01:37]} 17... Nb5 {[%clk 0:01:42.9]} 18. Bg5 {[%clk
0:00:47.8]} 18... Nd4 {[%clk 0:01:38.9]} 19. Qf4 {[%clk 0:00:35.5]} 19... Be7
{[%clk 0:01:35.3]} 20. Rf2 {[%clk 0:00:20.6]} 20... Nh5 {[%clk 0:00:49.9]} 21.
Qxf7+ {[%clk 0:00:15.8]} 1-0

[Event "Late-Titled-Tuesday-Blitz-October-17-2023"]
[Site "Chess.com"]
[Date "2023.10.17"]
[Round "7"]
[White "familijatop71"]
[Black "becemix"]
[Result "1-0"]
[WhiteElo "2128"]
[BlackElo "2434"]
[TimeControl "180+1"]
[EndTime "15:14:55 PDT"]
[Termination "familijatop71 won by checkmate"]

1. e4 {[%clk 0:03:00.9]} 1... e6 {[%clk 0:02:58.2]} 2. d4 {[%clk 0:02:59.5]}
2... d5 {[%clk 0:02:58.6]} 3. Nc3 {[%clk 0:02:59.8]} 3... Bb4 {[%clk 0:02:57.6]}
4. Bd3 {[%clk 0:02:59.1]} 4... Nc6 {[%clk 0:02:52.9]} 5. a3 {[%clk 0:02:39.3]}
5... dxe4 {[%clk 0:02:32.6]} 6. Bxe4 {[%clk 0:02:17]} 6... Ba5 {[%clk
0:02:32.4]} 7. Ne2 {[%clk 0:02:08.8]} 7... Nf6 {[%clk 0:02:30.8]} 8. Bd3 {[%clk
0:02:03.4]} 8... h6 {[%clk 0:02:11.8]} 9. O-O {[%clk 0:02:02.5]} 9... Bb6 {[%clk
0:02:08.9]} 10. Be3 {[%clk 0:01:46.1]} 10... O-O {[%clk 0:02:06.3]} 11. Qd2
{[%clk 0:01:38.2]} 11... Ng4 {[%clk 0:01:57.6]} 12. h3 {[%clk 0:01:27.7]} 12...
Nxe3 {[%clk 0:01:55.5]} 13. fxe3 {[%clk 0:01:28.3]} 13... Qg5 {[%clk 0:01:51.9]}
14. Ne4 {[%clk 0:01:20.6]} 14... Qh5 {[%clk 0:01:40.8]} 15. Rf3 {[%clk
0:01:04.4]} 15... e5 {[%clk 0:01:38]} 16. Rg3 {[%clk 0:00:53.3]} 16... f5 {[%clk
0:01:26.1]} 17. Bc4+ {[%clk 0:00:38.2]} 17... Kh8 {[%clk 0:01:25.4]} 18. Nc5
{[%clk 0:00:23.1]} 18... f4 {[%clk 0:01:13.3]} 19. exf4 {[%clk 0:00:20.4]} 19...
exf4 {[%clk 0:01:14.2]} 20. Rf3 {[%clk 0:00:19]} 20... Bxc5 {[%clk 0:01:10.9]}
21. dxc5 {[%clk 0:00:18.6]} 21... Qxc5+ {[%clk 0:01:11.5]} 22. Kh1 {[%clk
0:00:15.3]} 22... Qxc4 {[%clk 0:01:11.2]} 23. Nxf4 {[%clk 0:00:15.3]} 23... Bf5
{[%clk 0:01:03.9]} 24. Raf1 {[%clk 0:00:15]} 24... Bh7 {[%clk 0:01:01.6]} 25.
Ng6+ {[%clk 0:00:10]} 25... Kg8 {[%clk 0:01:00.1]} 26. Rxf8+ {[%clk 0:00:09.5]}
26... Rxf8 {[%clk 0:00:59.2]} 27. Rxf8# {[%clk 0:00:10.4]} 1-0

[Event "Late-Titled-Tuesday-Blitz-October-17-2023"]
[Site "Chess.com"]
[Date "2023.10.17"]
[Round "7"]
[White "ChessSwole"]
[Black "ritanovikova"]
[Result "0-1"]
[WhiteElo "2734"]
[BlackElo "2134"]
[TimeControl "180+1"]
[EndTime "15:15:03 PDT"]
[Termination "ritanovikova won by resignation"]

1. Nf3 {[%clk 0:03:00.9]} 1... Nf6 {[%clk 0:02:59.4]} 2. c4 {[%clk 0:03:00.7]}
2... e6 {[%clk 0:02:53.9]} 3. d4 {[%clk 0:02:55.2]} 3... d5 {[%clk 0:02:53.3]}
4. Nc3 {[%clk 0:02:54.9]} 4... Be7 {[%clk 0:02:51.4]} 5. Bf4 {[%clk 0:02:54.1]}
5... a6 {[%clk 0:02:50.3]} 6. e3 {[%clk 0:02:52.6]} 6... dxc4 {[%clk 0:02:42.1]}
7. Bxc4 {[%clk 0:02:53.5]} 7... b5 {[%clk 0:02:41.9]} 8. Bd3 {[%clk 0:02:36.3]}
8... Bb7 {[%clk 0:02:41.5]} 9. O-O {[%clk 0:02:34.2]} 9... Nbd7 {[%clk
0:02:41.2]} 10. Rc1 {[%clk 0:02:29.8]} 10... c5 {[%clk 0:02:39.9]} 11. Qe2
{[%clk 0:02:24.2]} 11... cxd4 {[%clk 0:02:33.7]} 12. Nxd4 {[%clk 0:02:16.2]}
12... e5 {[%clk 0:02:30.5]} 13. Nf5 {[%clk 0:02:06.2]} 13... exf4 {[%clk
0:02:29.5]} 14. exf4 {[%clk 0:01:57.8]} 14... Kf8 {[%clk 0:02:24.3]} 15. Rfe1
{[%clk 0:01:49]} 15... Bc5 {[%clk 0:02:08.3]} 16. Rcd1 {[%clk 0:01:46.1]} 16...
Qb6 {[%clk 0:02:02]} 17. Kh1 {[%clk 0:01:23.7]} 17... g6 {[%clk 0:01:57.2]} 18.
Ne3 {[%clk 0:01:10.2]} 18... Re8 {[%clk 0:01:51.4]} 19. Qd2 {[%clk 0:01:08.7]}
19... Qc6 {[%clk 0:01:47.2]} 20. Bf1 {[%clk 0:01:04.4]} 20... Nb6 {[%clk
0:01:39.7]} 21. f5 {[%clk 0:01:00.2]} 21... Kg7 {[%clk 0:01:38.9]} 22. Qc2
{[%clk 0:00:46.9]} 22... Bxe3 {[%clk 0:01:36.2]} 23. fxe3 {[%clk 0:00:46.2]}
23... b4 {[%clk 0:01:36.5]} 24. e4 {[%clk 0:00:38.4]} 24... bxc3 {[%clk
0:01:34.4]} 25. e5 {[%clk 0:00:38.6]} 25... Nh5 {[%clk 0:01:22.2]} 26. f6+
{[%clk 0:00:36.2]} 26... Nxf6 {[%clk 0:01:22.1]} 27. exf6+ {[%clk 0:00:35.3]}
27... Qxf6 {[%clk 0:01:23]} 28. bxc3 {[%clk 0:00:32.7]} 28... Rxe1 {[%clk
0:01:19.3]} 29. Rxe1 {[%clk 0:00:33.6]} 29... Re8 {[%clk 0:01:19.3]} 30. Rd1
{[%clk 0:00:28.1]} 30... Nd5 {[%clk 0:01:18]} 31. Qd2 {[%clk 0:00:15.1]} 31...
Ne3 {[%clk 0:01:06.7]} 32. Re1 {[%clk 0:00:15.3]} 32... Nxf1 {[%clk 0:01:05.4]}
0-1